bitfinex-derivatives/quotes_ETHF0:USTF0_20250503
["timestamp","ask_amount","ask_price","bid_price","bid_amount"]
[1746285076181,13.07569893,1838.3,1838.2,3.2078]
[1746285077282,9.35769893,1838.3,1838.2,3.2078]
[1746285078283,15.17769893,1838.3,1838.2,3.2078]
[1746285078586,2.71937,1838.2,1838.0,3.2078]
[1746285078787,2.792,1838.1,1838.0,3.2078]
[1746285079078,3.6479,1838.1,1838.0,4.29566]
[1746285079784,3.6479,1838.1,1838.0,3.2078]
[1746285080685,3.6479,1838.1,1838.0,4.29566]
[1746285081887,4.07913867,1838.1,1838.0,4.29566]
[1746285083288,4.07913867,1838.1,1838.0,3.2078]
[1746285083976,4.07913867,1838.1,1838.0,4.29566]
[1746285085284,4.07913867,1838.1,1838.0,3.2078]
[1746285085483,4.07913867,1838.1,1838.0,4.29566]
[1746285087593,4.07913867,1838.1,1838.0,1.08786]
[1746285087781,4.07913867,1838.1,1838.0,4.29566]
[1746285090189,2.99133867,1838.1,1838.0,4.29566]
[1746285090386,4.07913867,1838.1,1838.0,4.29566]
[1746285090588,2.99133867,1838.1,1838.0,4.29566]
[1746285091294,4.07913867,1838.1,1838.0,4.29566]
[1746285095396,4.07913867,1838.1,1838.0,3.2078]
[1746285095892,4.07913867,1838.1,1838.0,4.29566]
[1746285098296,4.07913867,1838.1,1838.0,1.08786]
[1746285101300,1.08786,1838.0,1837.9,2.7511]
[1746285101507,2.77376,1838.0,1837.9,2.7511]
[1746285101799,3.20499867,1838.0,1837.9,2.7511]
[1746285102000,3.20499867,1838.0,1837.9,1.0879]
[1746285102600,1.08792,1837.9,1837.8,7.50624]
[1746285102903,1.51915867,1837.9,1837.8,7.50624]
[1746285103093,1.51915867,1837.9,1837.8,11.22424]
[1746285104089,1.51915867,1837.9,1837.8,7.50624]
[1746285104901,3.13955867,1837.9,1837.8,7.50624]
[1746285110404,3.13955867,1837.9,1837.8,6.4183]
[1746285110602,3.13955867,1837.9,1837.8,4.0101]
[1746285112105,1.08804,1837.7,1837.6,0.8052]
[1746285112304,4.77147867,1837.9,1837.5,8.04712879]
[1746285112305,1.0881,1837.6,1837.5,8.04712879]
[1746285112806,1.0881,1837.6,1837.5,9.13528879]
[1746285113001,2.04383867,1837.6,1837.5,10.87278879]
[1746285116917,2.04383867,1837.6,1837.5,3.61716]
[1746285117402,0.43123867,1837.6,1837.5,3.61716]
[1746285118410,1.51933867,1837.6,1837.5,1.87966]
[1746285118607,3.24303867,1837.6,1837.5,1.87966]
[1746285119209,3.24303867,1837.6,1837.5,3.47686]
[1746285123616,2.15493867,1837.6,1837.5,3.47686]
[1746285123815,3.24303867,1837.6,1837.5,3.47686]
[1746285124016,2.15493867,1837.6,1837.5,3.47686]
[1746285125312,3.24303867,1837.6,1837.5,3.47686]
[1746285126218,3.24303867,1837.6,1837.5,6.68466]
[1746285128121,2.15493867,1837.6,1837.5,6.68466]
[1746285128315,3.24303867,1837.6,1837.5,6.68466]
[1746285132721,3.24303867,1837.6,1837.5,4.29596]
[1746285133718,2.15493867,1837.6,1837.5,4.29596]
[1746285133923,2.15493867,1837.6,1837.5,5.10416]
[1746285134326,0.43123867,1837.6,1837.5,5.10416]
[1746285135230,0.43123867,1837.6,1837.5,8.82216]
[1746285136131,0.43123867,1837.6,1837.5,5.10416]
[1746285137129,0.43123867,1837.6,1837.5,8.82216]
[1746285138230,0.43123867,1837.6,1837.5,5.10416]
[1746285139125,0.43123867,1837.6,1837.5,8.82216]
[1746285140134,0.43123867,1837.6,1837.5,5.10416]
[1746285141138,0.43123867,1837.6,1837.5,8.82216]
[1746285141339,2.06483867,1837.6,1837.5,8.82216]
[1746285142136,2.06483867,1837.6,1837.5,5.10416]
[1746285142833,2.06483867,1837.6,1837.5,4.29596]
[1746285143230,5.78283867,1837.6,1837.5,4.29596]
[1746285143834,6.87093867,1837.6,1837.5,4.29596]
[1746285145136,3.15293867,1837.6,1837.5,4.29596]
[1746285146833,8.97293867,1837.6,1837.5,4.29596]
[1746285148329,8.97293867,1837.6,1837.5,1.08816]
[1746285148533,8.97293867,1837.6,1837.5,3.2078]
[1746285148843,1.08819,1837.5,1837.4,1.0882]
[1746285149033,3.58429,1837.5,1837.4,1.0882]
[1746285149240,2.4961,1837.5,1837.4,1.0882]
[1746285149539,5.82,1837.6,1837.5,1.08816]
[1746285149737,5.82,1837.6,1837.5,4.29596]
[1746285150136,6.25120644,1837.6,1837.5,5.15966]
[1746285150333,6.25120644,1837.6,1837.5,8.87766]
[1746285152639,0.43120644,1837.6,1837.5,8.87766]
[1746285156432,0.43120644,1837.6,1837.5,10.59196]
[1746285158145,0.43120644,1837.6,1837.5,14.05996]
[1746285162347,0.43120644,1837.6,1837.5,28.93437917]
[1746285163655,0.43120644,1837.6,1837.5,26.35637917]
[1746285164138,1.24740644,1837.6,1837.5,26.35637917]
[1746285165443,1.24740644,1837.6,1837.5,22.88837917]
[1746285166043,2.96530644,1837.6,1837.5,8.01396]
[1746285166241,2.96530644,1837.6,1837.5,4.29596]
[1746285167148,2.96530644,1837.6,1837.5,8.01396]
[1746285168049,2.96530644,1837.6,1837.5,4.29596]
[1746285169847,4.05340644,1837.6,1837.5,4.29596]
[1746285170649,2.96530644,1837.6,1837.5,4.29596]
[1746285171042,4.05340644,1837.6,1837.5,4.29596]
[1746285176947,2.96530644,1837.6,1837.5,4.29596]
[1746285177548,4.05340644,1837.6,1837.5,4.29596]
[1746285178146,7.77140644,1837.6,1837.5,4.29596]
[1746285179254,4.05340644,1837.6,1837.5,1.08816]
[1746285179656,4.05340644,1837.6,1837.5,4.29596]
[1746285184654,2.96530644,1837.6,1837.5,4.29596]
[1746285185056,4.05340644,1837.6,1837.5,4.29596]
[1746285190058,4.05340644,1837.6,1837.5,3.2078]
[1746285190557,4.05340644,1837.6,1837.5,4.29596]
[1746285193852,4.05340644,1837.6,1837.5,5.13876]
[1746285196561,4.05340644,1837.6,1837.5,1.93096]
[1746285196758,4.05340644,1837.6,1837.5,5.13876]
[1746285198260,2.14910644,1837.6,1837.5,5.13876]
[1746285200964,3.23720644,1837.6,1837.5,5.13876]
[1746285201551,3.23720644,1837.6,1837.5,4.0506]
[1746285201856,3.23720644,1837.6,1837.5,3.2078]
[1746285202864,3.23720644,1837.6,1837.5,4.29596]
[1746285208168,3.23720644,1837.6,1837.5,8.01396]
[1746285210168,3.23720644,1837.6,1837.5,1.08816]
[1746285210467,3.23720644,1837.6,1837.5,4.29596]
[1746285215871,4.05490644,1837.6,1837.5,4.29596]
[1746285216268,4.05490644,1837.6,1837.5,8.01396]
[1746285217073,4.05490644,1837.6,1837.5,4.80616]
[1746285217271,4.05490644,1837.6,1837.5,1.08816]
[1746285217472,4.05490644,1837.6,1837.5,4.29596]
[1746285219275,4.05490644,1837.6,1837.5,1.08816]
[1746285219573,4.05490644,1837.6,1837.5,4.29596]
[1746285219775,1.08822,1837.4,1837.3,11.27852879]
[1746285219972,1.51942644,1837.4,1837.3,11.27852879]
[1746285220166,1.51942644,1837.4,1837.3,12.36680879]
[1746285220367,4.07352644,1837.4,1837.3,12.36680879]
[1746285220568,4.07352644,1837.4,1837.3,11.27852879]
[1746285221173,4.07352644,1837.4,1837.3,14.99652879]
[1746285223276,4.07352644,1837.4,1837.3,6.9258]
[1746285223775,4.07352644,1837.4,1837.3,3.718]
[1746285224169,1.08834,1837.2,1837.1,10.46342879]
[1746285224582,1.51954644,1837.2,1837.1,10.46342879]
[1746285224772,4.07944644,1837.2,1837.1,10.46342879]
[1746285225373,4.86974644,1837.2,1837.1,10.46342879]
[1746285227281,4.86974644,1837.2,1837.1,3.2078]
[1746285231882,10.68974644,1837.2,1837.1,3.2078]
[1746285233186,6.25120644,1837.2,1837.1,4.2962]
[1746285233486,0.43120644,1837.2,1837.1,6.0101]
[1746285235780,1.51954644,1837.2,1837.1,6.0101]
[1746285235983,1.51954644,1837.2,1837.1,6.8297]
[1746285236689,3.25704644,1837.2,1837.1,6.8297]
[1746285237387,9.07610978,1837.2,1837.1,3.2078]
[1746285237776,9.07610978,1837.2,1837.1,5.6391]
[1746285241986,9.07610978,1837.2,1837.1,6.7275]
[1746285242187,9.07610978,1837.2,1837.1,5.6391]
[1746285243397,9.07610978,1837.2,1837.1,6.7275]
[1746285243592,9.07610978,1837.2,1837.1,5.6391]
[1746285246793,6.25026978,1837.2,1837.1,6.7275]
[1746285247491,7.33860978,1837.2,1837.1,6.7275]
[1746285248599,7.33860978,1837.2,1837.1,5.6391]
[1746285249389,8.98030978,1837.2,1837.1,5.6391]
[1746285249896,8.98030978,1837.2,1837.1,6.7275]
[1746285251389,7.89196978,1837.2,1837.1,6.7275]
[1746285252397,2.07196978,1837.2,1837.1,6.7275]
[1746285252898,3.16030978,1837.2,1837.1,6.7275]
[1746285253504,3.16030978,1837.2,1837.1,5.6391]
[1746285253802,3.16030978,1837.2,1837.1,4.2962]
[1746285253989,3.16030978,1837.2,1837.1,3.2078]
[1746285254900,4.02910978,1837.2,1837.1,4.2962]
[1746285258497,9.84910978,1837.2,1837.1,3.2078]
[1746285260906,1.0884,1837.1,1837.0,5.60845]
[1746285261207,3.91186978,1837.1,1837.0,5.60845]
[1746285261606,3.91186978,1837.1,1837.0,4.52]
[1746285263016,3.91186978,1837.1,1837.0,3.718]
[1746285263916,3.91186978,1837.1,1837.0,4.80645]
[1746285269019,2.82346978,1837.1,1837.0,4.80645]
[1746285269206,0.43026978,1837.1,1837.0,4.80645]
[1746285269412,0.43026978,1837.1,1837.0,6.55405]
[1746285271219,1.51866978,1837.1,1837.0,6.55405]
[1746285271820,3.12436978,1837.1,1837.0,6.55405]
[1746285272013,3.12436978,1837.1,1837.0,4.80645]
[1746285273319,3.12436978,1837.1,1837.0,6.45645]
[1746285276730,3.12436978,1837.1,1837.0,3.718]
[1746285278425,3.12436978,1837.1,1837.0,4.80645]
[1746285281227,2.03596978,1837.1,1837.0,4.80645]
[1746285281527,0.43026978,1837.1,1837.0,7.33055]
[1746285286133,2.00696978,1837.1,1837.0,7.33055]
[1746285288330,3.09536978,1837.1,1837.0,7.33055]
[1746285288526,3.09536978,1837.1,1837.0,4.80645]
[1746285288927,2.00696978,1837.1,1837.0,4.80645]
[1746285290335,2.00696978,1837.1,1837.0,6.42925]
[1746285290930,0.43026978,1837.1,1837.0,6.42925]
[1746285294737,0.43026978,1837.1,1837.0,9.63705]
[1746285296535,1.7091,1837.2,1837.1,1.0884]
[1746285296737,1.7091,1837.2,1837.1,2.7464]
[1746285296940,1.7091,1837.2,1837.1,4.3957]
[1746285297132,2.14063354,1837.2,1837.1,4.3957]
[1746285297940,3.22897354,1837.2,1837.1,1.8846]
[1746285302348,2.14063354,1837.2,1837.1,5.0924]
[1746285304554,2.14063354,1837.2,1837.1,1.8846]
[1746285304741,3.22897354,1837.2,1837.1,5.0924]
[1746285305247,2.14063354,1837.2,1837.1,5.0924]
[1746285305746,3.22897354,1837.2,1837.1,5.0924]
[1746285308548,4.07067354,1837.2,1837.1,3.2078]
[1746285308743,4.07067354,1837.2,1837.1,4.2962]
[1746285309650,4.07067354,1837.2,1837.1,5.1078]
[1746285312349,4.07067354,1837.2,1837.1,3.2078]
[1746285313252,1.0884,1837.1,1837.0,4.80643]
[1746285313548,3.98533354,1837.1,1837.0,6.9258]
[1746285315353,3.98533354,1837.1,1837.0,8.01425]
[1746285315547,3.98533354,1837.1,1837.0,6.9258]
[1746285316948,9.80533354,1837.1,1837.0,6.9258]
[1746285319156,9.80533354,1837.1,1837.0,8.01425]
[1746285320254,9.80533354,1837.1,1837.0,6.9258]
[1746285320857,9.80533354,1837.1,1837.0,8.01425]
[1746285324460,9.80533354,1837.1,1837.0,6.9258]
[1746285326558,13.44113787,1837.1,1837.0,6.9258]
[1746285331154,13.44113787,1837.1,1837.0,3.2078]
[1746285337157,2.72124,1837.0,1836.8,3.2078]
[1746285337355,2.31984354,1836.9,1836.8,3.2078]
[1746285337554,1.08869,1836.6,1836.5,5.6953]
[1746285337759,1.52022354,1836.6,1836.5,5.6953]
[1746285338151,3.24262354,1836.6,1836.5,9.4133]
[1746285338355,3.24262354,1836.6,1836.5,10.50205]
[1746285339957,0.43153354,1836.6,1836.5,10.50205]
[1746285343471,1.52022354,1836.6,1836.5,10.50205]
[1746285349873,3.09602354,1836.6,1836.5,10.50205]
[1746285350574,0.43153354,1836.6,1836.5,10.50205]
[1746285350865,0.43153354,1836.6,1836.5,15.50205]
[1746285353173,0.43153354,1836.6,1836.5,12.29425]
[1746285353374,0.43153354,1836.6,1836.5,15.50205]
[1746285356675,0.43153354,1836.6,1836.5,17.75767879]
[1746285356979,0.10473355,1836.6,1836.5,22.75767879]
[1746285358076,7.3957,1837.2,1837.1,1.0884]
[1746285358276,1.5757,1837.2,1837.1,4.2962]
[1746285359379,1.5757,1837.2,1837.1,6.0424]
[1746285363384,14.22280602,1837.3,1837.2,1.08834]
[1746285363681,14.22280602,1837.3,1837.2,3.66634]
[1746285363982,15.91410602,1837.3,1837.2,3.66634]
[1746285364178,15.05630602,1837.3,1837.2,7.38434]
[1746285364376,13.36500602,1837.3,1837.2,7.38434]
[1746285364579,6.98920433,1837.5,1837.4,1.08822]
[1746285364779,6.12250433,1837.5,1837.4,4.29602]
[1746285365281,6.12250433,1837.5,1837.4,8.01402]
[1746285365784,6.12250433,1837.5,1837.4,9.71222]
[1746285366882,5.32710433,1837.5,1837.4,9.71222]
[1746285367284,3.63580433,1837.5,1837.4,9.71222]
[1746285367883,3.63580433,1837.5,1837.4,50.51222]
[1746285368986,2.57,1837.6,1837.5,1.08816]
[1746285370187,2.57,1837.6,1837.5,4.80616]
[1746285370380,2.99482505,1837.6,1837.5,4.80616]
[1746285371285,1.06500434,1837.9,1837.8,1.08798]
[1746285371476,1.06500434,1837.9,1837.8,7.75778]
[1746285371672,1.06500434,1837.9,1837.8,48.55778]
[1746285372082,1.06500434,1837.9,1837.8,50.25878]
[1746285372287,1.06500434,1837.9,1837.8,53.97678]
[1746285372990,1.6748,1838.1,1838.0,1.08786]
[1746285373286,1.6748,1838.1,1838.0,4.29566]
[1746285373786,1.6748,1838.1,1838.0,7.62836]
[1746285374287,1.6748,1838.1,1838.0,11.34636]
[1746285377389,1.08752,1838.6,1838.5,1.08752]
[1746285377789,6.08752,1838.6,1838.5,1.08752]
[1746285378387,1.08752,1838.6,1838.5,1.08752]
[1746285378581,6.08752,1838.6,1838.5,1.08752]
[1746285378784,8.64342,1838.6,1838.5,1.08752]
[1746285380290,3.64342,1838.6,1838.5,1.08752]
[1746285381290,1.7407,1838.6,1838.5,1.08752]
[1746285382085,1.7407,1838.6,1838.5,4.80552]
[1746285390101,1.7407,1838.6,1838.5,1.08752]
[1746285391203,1.7407,1838.6,1838.5,4.80552]
[1746285393712,2.82821,1838.6,1838.5,4.80552]
[1746285394711,1.7407,1838.6,1838.5,4.80552]
[1746285394909,2.82821,1838.6,1838.5,4.80552]
[1746285396310,2.82821,1838.6,1838.5,1.08752]
[1746285397211,1.7407,1838.6,1838.5,1.08752]
[1746285397603,2.82821,1838.6,1838.5,1.08752]
[1746285398114,2.82821,1838.6,1838.5,4.80552]
[1746285399005,2.82821,1838.6,1838.5,3.718]
[1746285399306,2.82821,1838.6,1838.5,4.80557]
[1746285399708,2.82821,1838.6,1838.5,3.718]
[1746285400106,1.08757,1838.5,1838.4,8.01338]
[1746285400306,3.51457,1838.5,1838.4,8.01338]
[1746285402115,3.51457,1838.5,1838.4,4.29538]
[1746285402912,5.82,1838.6,1838.4,3.2078]
[1746285403116,5.82,1838.6,1838.5,1.08757]
[1746285403617,7.4914,1838.6,1838.5,1.08757]
[1746285404318,7.4914,1838.6,1838.5,6.51497]
[1746285404816,1.6714,1838.6,1838.5,6.51497]
[1746285405215,1.6714,1838.6,1838.5,2.79697]
[1746285406619,0.8596,1838.8,1838.7,1.08745]
[1746285406817,2.5158,1838.8,1838.7,1.08745]
[1746285407219,6.2338,1838.8,1838.7,1.08745]
[1746285411021,3.718,1838.8,1838.7,1.08745]
[1746285411221,3.718,1838.8,1838.7,3.63225]
[1746285412224,1.08735,1838.9,1838.8,1.08735]
[1746285412411,3.64655,1838.9,1838.8,3.2078]
[1746285413219,7.36455,1838.9,1838.8,4.29519]
[1746285417326,1.08748,1838.7,1838.6,1.08749]
[1746285418023,2.67348,1838.7,1838.6,1.08749]
[1746285418223,6.39148,1838.7,1838.6,1.08749]
[1746285419323,6.39148,1838.7,1838.6,4.29529]
[1746285421620,6.39148,1838.7,1838.6,1.08749]
[1746285421918,6.39148,1838.7,1838.6,4.29529]
[1746285422326,6.39148,1838.7,1838.6,3.2078]
[1746285422719,5.304,1838.7,1838.4,1.08757]
[1746285422924,3.54126,1838.6,1838.5,1.08756]
[1746285423320,3.54126,1838.6,1838.5,4.29536]
[1746285424127,7.25926,1838.6,1838.5,4.29536]
[1746285425228,7.25926,1838.6,1838.5,3.2078]
[1746285425627,1.08763,1838.4,1838.3,4.0477]
[1746285425928,1.08763,1838.4,1838.3,5.13538]
[1746285426128,3.58311,1838.5,1838.4,1.08763]
[1746285426332,1.94981,1838.5,1838.4,1.08763]
[1746285426827,1.08763,1838.4,1838.3,5.13534]
[1746285427129,5.66779,1838.5,1838.4,1.08763]
[1746285428828,5.66777,1838.5,1838.4,1.08763]
[1746285430130,4.5802,1838.5,1838.4,1.08763]
[1746285430323,3.718,1838.5,1838.4,1.08763]
[1746285430525,3.718,1838.5,1838.4,3.56513]
[1746285431031,4.80557,1838.5,1838.4,3.56513]
[1746285431231,1.08757,1838.5,1838.4,3.56513]
[1746285433131,1.08757,1838.5,1838.4,6.77293]
[1746285433524,1.08757,1838.5,1838.4,5.6853]
[1746285434423,1.08757,1838.5,1838.4,4.054]
[1746285434833,1.08757,1838.5,1838.4,5.14163]
[1746285435131,4.80557,1838.5,1838.4,4.29543]
[1746285435334,4.80557,1838.5,1838.4,3.2078]
[1746285437134,10.62557,1838.5,1838.4,3.2078]
[1746285440536,1.08768,1838.3,1838.2,4.29551]
[1746285441133,2.77598,1838.3,1838.2,4.29551]
[1746285441336,7.29508,1838.3,1838.2,3.2078]
[1746285443032,13.11508,1838.3,1838.2,3.2078]
[1746285443533,1.0878,1838.1,1838.0,3.2078]
[1746285444137,5.6223,1838.1,1838.0,3.2078]
[1746285446739,1.08792,1837.9,1837.8,5.6959]
[1746285447330,4.80592,1837.9,1837.8,6.78388]
[1746285447939,4.80592,1837.9,1837.8,5.6959]
[1746285448135,4.80592,1837.9,1837.8,4.076]
[1746285448339,10.62592,1837.9,1837.8,3.2078]
[1746285448542,12.22242,1837.9,1837.8,3.2078]
[1746285452740,1.08798,1837.8,1837.7,0.8573]
[1746285453041,3.51858,1837.8,1837.7,0.8573]
[1746285453339,7.23658,1837.8,1837.7,0.8573]
[1746285454351,1.08804,1837.7,1837.6,3.2078]
[1746285454639,2.75824,1837.7,1837.6,3.2078]
[1746285455337,7.27534,1837.7,1837.6,3.2078]
[1746285457643,13.09534,1837.7,1837.6,3.2078]
[1746285459147,12.29624,1837.7,1837.6,4.2959]
[1746285459442,10.62604,1837.7,1837.6,6.0173]
[1746285460639,10.62604,1837.7,1837.6,4.9292]
[1746285462248,9.538,1837.7,1837.6,11.0173]
[1746285463148,5.82,1837.7,1837.6,11.0173]
[1746285463546,1.08791,1838.0,1837.9,1.08792]
[1746285463844,1.08791,1838.0,1837.9,4.29572]
[1746285464345,4.80591,1838.0,1837.9,4.29572]
[1746285464849,3.718,1838.0,1837.9,4.29572]
[1746285465049,3.718,1838.0,1837.9,6.00962]
[1746285465851,4.80586,1838.0,1837.9,6.00962]
[1746285467352,3.718,1838.0,1837.9,6.00962]
[1746285467548,4.80586,1838.0,1837.9,6.00962]
[1746285468653,3.718,1838.0,1837.9,6.00962]
[1746285472155,8.56301,1838.1,1838.0,1.08786]
[1746285472156,12.28101,1838.1,1838.0,1.08786]
[1746285472358,12.28101,1838.1,1838.0,3.59716]
[1746285472859,5.3732,1838.1,1838.0,3.59716]
[1746285473059,3.718,1838.1,1838.0,1.08786]
[1746285473353,3.718,1838.1,1837.9,3.2078]
[1746285473354,1.08786,1838.0,1837.9,4.29568]
[1746285473661,3.65896,1838.0,1837.9,4.29568]
[1746285473960,3.65896,1838.0,1837.9,3.2078]
[1746285474155,7.37696,1838.0,1837.9,3.2078]
[1746285474350,1.08792,1837.9,1837.8,1.87577]
[1746285474558,2.80342,1837.9,1837.8,1.87577]
[1746285475154,6.52142,1837.9,1837.8,1.87577]
[1746285477455,6.52142,1837.9,1837.7,7.75578]
[1746285477666,2.526,1837.8,1837.7,7.75578]
[1746285478155,6.244,1837.8,1837.7,7.75578]
[1746285478858,7.33198,1837.8,1837.7,3.2078]
[1746285480757,7.33198,1837.8,1837.5,3.2078]
[1746285480758,1.0881,1837.6,1837.5,3.2078]
[1746285481157,4.8061,1837.6,1837.5,4.29596]
[1746285481359,6.4662,1837.6,1837.5,4.29596]
[1746285482367,6.4662,1837.6,1837.5,3.2078]
[1746285484469,3.718,1837.6,1837.5,4.29596]
[1746285484662,3.718,1837.6,1837.5,5.93206]
[1746285486169,8.64138,1837.7,1837.5,5.93206]
[1746285486370,8.64138,1837.7,1837.6,2.4921]
[1746285486566,8.64138,1837.7,1837.6,3.5802]
[1746285487072,12.35938,1837.7,1837.6,3.5802]
[1746285487272,11.2713,1837.7,1837.6,3.5802]
[1746285487567,9.538,1837.7,1837.6,3.5802]
[1746285488272,5.82,1837.7,1837.6,3.5802]
[1746285488572,6.90804,1837.7,1837.6,3.5802]
[1746285488874,5.82,1837.7,1837.6,3.5802]
[1746285489974,1.08804,1837.7,1837.6,3.5802]
[1746285490171,2.74604,1837.7,1837.6,3.5802]
[1746285491167,1.658,1837.7,1837.6,3.5802]
[1746285494666,2.74604,1837.7,1837.6,1.0881]
[1746285495075,6.46404,1837.7,1837.6,1.0881]
[1746285496575,1.0881,1837.6,1837.5,4.29591]
[1746285496874,2.4438,1837.6,1837.5,4.29591]
[1746285497074,6.1618,1837.6,1837.5,4.29591]
[1746285497275,7.2499,1837.6,1837.5,4.29591]
[1746285498179,6.1618,1837.6,1837.5,4.29591]
[1746285500073,3.5319,1837.6,1837.5,4.29591]
[1746285502280,7.2499,1837.6,1837.5,4.29591]
[1746285504378,7.2499,1837.6,1837.5,3.2078]
[1746285506788,7.2499,1837.6,1837.5,4.29596]
[1746285507486,7.2499,1837.6,1837.5,3.2078]
[1746285511387,2.72049,1837.5,1837.3,3.2078]
[1746285511581,1.93402,1837.4,1837.3,3.2078]
[1746285511787,3.55542,1837.4,1837.3,3.2078]
[1746285512081,1.08834,1837.2,1837.1,3.2078]
[1746285512488,2.70974,1837.2,1837.1,3.2078]
[1746285514198,6.42774,1837.2,1837.1,3.2078]
[1746285517891,1.08845,1837.0,1836.9,4.0226]
[1746285518086,4.80645,1837.0,1836.9,4.0226]
[1746285518295,4.80645,1837.0,1836.9,5.11111]
[1746285518596,7.34775,1837.0,1836.9,5.11111]
[1746285518798,6.2593,1837.0,1836.9,5.11111]
[1746285518997,7.34775,1837.0,1836.9,5.11111]
[1746285519597,3.718,1837.0,1836.9,5.11111]
[1746285520199,5.82,1837.1,1837.0,1.08845]
[1746285520399,5.82,1837.1,1837.0,3.61915]
[1746285521897,6.9084,1837.1,1837.0,3.61915]
[1746285522200,1.0884,1837.1,1837.0,3.61915]
[1746285522594,2.78868,1837.2,1837.1,1.0884]
[1746285522795,2.78868,1837.2,1837.1,5.8883]
[1746285523300,6.50668,1837.2,1837.1,5.8883]
[1746285523492,6.50668,1837.2,1837.1,4.7999]
[1746285524505,6.50668,1837.2,1837.1,3.2078]
[1746285526602,1.08845,1837.0,1836.9,4.0226]
[1746285526804,1.08845,1837.0,1836.9,3.2078]
[1746285527199,3.56835,1837.0,1836.9,3.2078]
[1746285528013,9.38835,1837.0,1836.9,3.2078]
[1746285530208,13.10635,1837.0,1836.9,3.2078]
[1746285531309,9.38835,1837.0,1836.9,3.2078]
[1746285532409,8.57365,1837.0,1836.9,3.2078]
[1746285533103,5.82,1837.0,1836.9,4.29631]
[1746285533299,5.82,1837.0,1836.9,9.29631]
[1746285533706,5.82,1837.0,1836.9,5.87951]
[1746285534005,6.90835,1837.2,1837.1,1.0884]
[1746285534206,6.90835,1837.2,1837.1,4.2962]
[1746285534606,6.90835,1837.2,1837.1,5.9641]
[1746285534807,1.08845,1837.0,1836.9,3.718]
[1746285535207,1.08845,1837.0,1836.9,2.4445]
[1746285536212,1.08845,1837.0,1836.9,6.1625]
[1746285537009,1.08845,1837.0,1836.9,3.718]
[1746285537207,1.91575,1837.0,1836.9,3.718]
[1746285537712,3.64725,1837.0,1836.9,3.718]
[1746285538212,1.08851,1836.9,1836.8,5.7477]
[1746285540213,1.08851,1836.9,1836.8,9.4657]
[1746285540720,2.83561,1836.9,1836.8,9.4657]
[1746285542321,2.83561,1836.9,1836.8,5.7477]
[1746285542515,1.08848,1837.0,1836.9,1.0885]
[1746285542724,1.08845,1837.0,1836.9,3.6214]
[1746285543115,1.08845,1837.0,1836.9,7.3394]
[1746285546130,1.08845,1837.0,1836.9,3.6214]
[1746285547231,1.08845,1837.0,1836.9,7.3394]
[1746285547833,1.08845,1837.0,1836.9,6.2509]
[1746285548333,1.08845,1837.0,1836.9,2.5329]
[1746285549634,1.08845,1837.0,1836.9,3.62141]
[1746285556538,1.5998,1837.1,1837.0,1.08845]
[1746285556730,2.68822,1837.1,1837.0,5.94425]
[1746285557935,6.90838,1837.2,1837.1,1.0884]
[1746285558140,6.90834,1837.2,1837.1,1.8813]
[1746285558332,6.90834,1837.2,1837.1,3.5881]
[1746285558731,8.49744,1837.2,1837.1,3.5881]
[1746285559641,8.49744,1837.2,1837.1,2.4997]
[1746285559940,8.92530986,1837.2,1837.1,2.4997]
[1746285560241,8.92530986,1837.2,1837.1,3.5881]
[1746285560843,7.83696986,1837.2,1837.1,3.5881]
[1746285561338,6.24786986,1837.2,1837.1,3.5881]
[1746285562139,7.33620986,1837.2,1837.1,3.5881]
[1746285563338,3.11560986,1837.2,1837.1,3.5881]
[1746285564639,2.02726986,1837.2,1837.1,3.5881]
[1746285564941,0.42786986,1837.2,1837.1,3.5881]
[1746285566740,0.42786986,1837.2,1837.1,7.0491]
[1746285570341,3.63289466,1837.6,1837.5,1.08816]
[1746285570544,2.35783466,1837.6,1837.5,7.75696]
[1746285570849,1.07518466,1837.6,1837.5,12.75696]
[1746285571144,4.66e-06,1837.6,1837.5,57.27496]
[1746285571344,4.66e-06,1837.6,1837.5,59.68246]
[1746285573540,4.66e-06,1837.6,1837.5,54.68246]
[1746285573948,1.6088,1837.9,1837.8,1.08798]
[1746285574148,1.6088,1837.9,1837.8,7.75578]
[1746285574849,1.6088,1837.9,1837.8,10.30228]
[1746285576147,5.3268,1837.9,1837.8,10.30228]
[1746285577346,1.6088,1837.9,1837.8,10.30228]
[1746285578149,5.3268,1837.9,1837.8,10.30228]
[1746285580151,1.6088,1837.9,1837.8,10.30228]
[1746285582146,5.3268,1837.9,1837.8,10.30228]
[1746285582750,5.74774665,1837.9,1837.8,10.30228]
[1746285584949,5.74774665,1837.9,1837.8,7.75578]
[1746285585246,2.02974665,1837.9,1837.8,7.75578]
[1746285586243,5.74774665,1837.9,1837.8,7.75578]
[1746285586654,5.74774665,1837.9,1837.8,48.55578]
[1746285590359,6.62024665,1837.9,1837.8,48.55578]
[1746285591555,6.62024665,1837.9,1837.8,7.75578]
[1746285591757,7.70816665,1837.9,1837.8,7.75578]
[1746285591957,12.70816665,1837.9,1837.8,4.29578]
[1746285592555,18.52816665,1837.9,1837.8,1.08798]
[1746285592750,1.088,1837.8,1837.7,1.08798]
[1746285592949,2.7326,1837.8,1837.7,1.08798]
[1746285593161,6.4506,1837.8,1837.7,1.08798]
[1746285593553,6.87154665,1837.8,1837.7,1.08798]
[1746285595059,5.78354665,1837.8,1837.7,1.08798]
[1746285603165,2.06554665,1837.8,1837.7,1.08798]
[1746285604168,5.78354665,1837.8,1837.7,1.08798]
[1746285604369,5.78354665,1837.8,1837.7,4.29578]
[1746285607266,5.78354665,1837.8,1837.7,1.08798]
[1746285607469,5.78354665,1837.8,1837.7,4.29578]
[1746285608163,6.87152665,1837.8,1837.7,4.29578]
[1746285608367,6.87152665,1837.8,1837.7,3.2078]